[Event "Titled Tuesday Blitz April 19 Early 2022"]
[White "Mekhitarian, Krikor Sevag"]
[Black "Martic, Ivan"]
[WhiteFideId "2107660"]
[BlackFideId "929301"]
[WhiteElo "2598"]
[BlackElo "2317"]
[Result "0-1"]
[Round "05"]
[TimeControl "180+1"]
[Date "2022.04.19"]
[WhiteClock "0:00:11"]
[BlackClock "0:00:08"]

1. Nf3 {[%clk 0:03:00]}  Nf6 {[%clk 0:02:59]} 2. c4 {[%clk 0:03:00]}  g6 {[%clk 0:02:57]} 3. Nc3 {[%clk 0:02:59]}  Bg7 {[%clk 0:02:57]} 4. e4 {[%clk 0:02:56]}  d6 {[%clk 0:02:58]} 5. d4 {[%clk 0:02:55]}  O-O {[%clk 0:02:57]} 6. h3 {[%clk 0:02:53]}  e5 {[%clk 0:02:57]} 7. d5 {[%clk 0:02:51]}  a5 {[%clk 0:02:56]} 8. g4 {[%clk 0:02:48]}  Na6 {[%clk 0:02:55]} 9. Be3 {[%clk 0:02:46]}  Bd7 {[%clk 0:02:47]} 10. Be2 {[%clk 0:02:32]}  c6 {[%clk 0:02:43]} 11. Rg1 {[%clk 0:02:14]}  a4 {[%clk 0:02:31]} 12. a3 {[%clk 0:02:03]}  cxd5 {[%clk 0:02:29]} 13. cxd5 {[%clk 0:02:02]}  Nc5 {[%clk 0:02:21]} 14. Nd2 {[%clk 0:02:02]}  b5 {[%clk 0:02:01]} 15. g5 {[%clk 0:01:58]}  Ne8 {[%clk 0:01:44]} 16. h4 {[%clk 0:01:39]}  Qa5 {[%clk 0:01:33]} 17. Kf1 {[%clk 0:01:35]}  f5 {[%clk 0:01:22]} 18. gxf6 {[%clk 0:01:21]}  Bh3+ {[%clk 0:01:18]} 19. Ke1 {[%clk 0:01:18]}  Nxf6 {[%clk 0:01:18]} 20. Qb1 {[%clk 0:01:08]}  Kh8 {[%clk 0:01:08]} 21. Rh1 {[%clk 0:01:02]}  Bg2 {[%clk 0:01:05]} 22. Rh2 {[%clk 0:00:52]}  Bxe4 {[%clk 0:01:03]} 23. Ncxe4 {[%clk 0:00:46]}  Ncxe4 {[%clk 0:01:04]} 24. h5 {[%clk 0:00:47]}  gxh5 {[%clk 0:00:50]} 25. Bd3 {[%clk 0:00:31]}  Nc5 {[%clk 0:00:33]} 26. Bc2 {[%clk 0:00:29]}  e4 {[%clk 0:00:30]} 27. Qd1 {[%clk 0:00:24]}  Rae8 {[%clk 0:00:24]} 28. Kf1 {[%clk 0:00:24]}  Nxd5 {[%clk 0:00:22]} 29. Bxc5 {[%clk 0:00:22]}  dxc5 {[%clk 0:00:21]} 30. Qxh5 {[%clk 0:00:23]}  Nf6 {[%clk 0:00:18]} 31. Qxc5 {[%clk 0:00:23]}  Qxd2 {[%clk 0:00:17]} 32. Rd1 {[%clk 0:00:17]}  Qf4 {[%clk 0:00:16]} 33. Rg2 {[%clk 0:00:17]}  Ng4 {[%clk 0:00:15]} 34. Kg1 {[%clk 0:00:16]}  e3 {[%clk 0:00:13]} 35. fxe3 {[%clk 0:00:12]}  Nxe3 {[%clk 0:00:11]} 36. Qh5 {[%clk 0:00:12]}  h6 {[%clk 0:00:10]} 37. Bb1 {[%clk 0:00:10]}  Nxd1 {[%clk 0:00:09]} 38. Qg6 {[%clk 0:00:10]}  Qf1+ {[%clk 0:00:09]} 39. Kh2 {[%clk 0:00:10]}  Be5+ {[%clk 0:00:09]} 40. Kh3 {[%clk 0:00:11]}  Qh1+ {[%clk 0:00:08]} 0-1


[Site "https://www.chess.com"]

[Event "Titled Tuesday Blitz April 19 Early 2022"]
[White "Mokshanov, Alexey"]
[Black "Bach, Ngoc Thuy Duong"]
[WhiteFideId "24121657"]
[BlackFideId "12408956"]
[WhiteElo "2141"]
[BlackElo "1862"]
[Result "1-0"]
[Round "05"]
[TimeControl "180+1"]
[Date "2022.04.19"]
[WhiteClock "0:00:15"]
[BlackClock "0:00:07"]

1. e4 {[%clk 0:02:52]}  c5 {[%clk 0:02:52]} 2. Nf3 {[%clk 0:02:51]}  d6 {[%clk 0:02:52]} 3. c3 {[%clk 0:02:50]}  Nf6 {[%clk 0:02:51]} 4. h3 {[%clk 0:02:51]}  Nc6 {[%clk 0:02:42]} 5. Bd3 {[%clk 0:02:51]}  d5 {[%clk 0:02:38]} 6. e5 {[%clk 0:02:49]}  Nd7 {[%clk 0:02:37]} 7. Qe2 {[%clk 0:02:41]}  Qc7 {[%clk 0:02:37]} 8. Bb5 {[%clk 0:02:40]}  e6 {[%clk 0:02:20]} 9. O-O {[%clk 0:02:37]}  a6 {[%clk 0:02:07]} 10. Bxc6 {[%clk 0:02:36]}  bxc6 {[%clk 0:01:56]} 11. d4 {[%clk 0:02:36]}  cxd4 {[%clk 0:01:55]} 12. cxd4 {[%clk 0:02:36]}  c5 {[%clk 0:01:55]} 13. Bf4 {[%clk 0:02:27]}  a5 {[%clk 0:01:52]} 14. Rc1 {[%clk 0:02:19]}  Ba6 {[%clk 0:01:51]} 15. Qd2 {[%clk 0:02:19]}  Be7 {[%clk 0:01:44]} 16. Nc3 {[%clk 0:02:16]}  O-O {[%clk 0:01:39]} 17. Nxd5 {[%clk 0:02:10]}  exd5 {[%clk 0:01:34]} 18. e6 {[%clk 0:02:10]}  Bd6 {[%clk 0:01:32]} 19. Bxd6 {[%clk 0:02:10]}  Qxd6 {[%clk 0:01:32]} 20. exd7 {[%clk 0:02:10]}  cxd4 {[%clk 0:01:23]} 21. Nxd4 {[%clk 0:02:05]}  Qxd7 {[%clk 0:01:23]} 22. Qxa5 {[%clk 0:02:04]}  Bc4 {[%clk 0:01:23]} 23. Qd2 {[%clk 0:01:59]}  Rfe8 {[%clk 0:01:16]} 24. b3 {[%clk 0:01:58]}  Ba6 {[%clk 0:01:16]} 25. Re1 {[%clk 0:01:56]}  g6 {[%clk 0:01:13]} 26. Rxe8+ {[%clk 0:01:55]}  Rxe8 {[%clk 0:01:14]} 27. Re1 {[%clk 0:01:55]}  Rc8 {[%clk 0:01:14]} 28. a4 {[%clk 0:01:46]}  Qc7 {[%clk 0:01:12]} 29. Qe3 {[%clk 0:01:29]}  Qc3 {[%clk 0:01:04]} 30. Qxc3 {[%clk 0:01:24]}  Rxc3 {[%clk 0:01:04]} 31. Rd1 {[%clk 0:01:23]}  Kf8 {[%clk 0:01:02]} 32. f3 {[%clk 0:01:23]}  Ke7 {[%clk 0:01:01]} 33. Kf2 {[%clk 0:01:23]}  Kd6 {[%clk 0:00:55]} 34. b4 {[%clk 0:01:07]}  Bc4 {[%clk 0:00:39]} 35. a5 {[%clk 0:00:59]}  Ra3 {[%clk 0:00:34]} 36. Rd2 {[%clk 0:00:58]}  Ra1 {[%clk 0:00:29]} 37. f4 {[%clk 0:00:39]}  Rb1 {[%clk 0:00:26]} 38. Nc2 {[%clk 0:00:37]}  Kc6 {[%clk 0:00:14]} 39. Ke3 {[%clk 0:00:33]}  Rb3+ {[%clk 0:00:13]} 40. Kd4 {[%clk 0:00:33]}  Kb5 {[%clk 0:00:12]} 41. Ke5 {[%clk 0:00:28]}  Ka4 {[%clk 0:00:11]} 42. Nd4 {[%clk 0:00:23]}  Re3+ {[%clk 0:00:11]} 43. Kf6 {[%clk 0:00:21]}  Re4 {[%clk 0:00:11]} 44. a6 {[%clk 0:00:17]}  Re8 {[%clk 0:00:08]} 45. a7 {[%clk 0:00:15]}  Kxb4 {[%clk 0:00:07]} 46. Rb2+ {[%clk 0:00:14]}  Kc5 {[%clk 0:00:07]} 47. Rb8 {[%clk 0:00:15]} 1-0


[Site "https://www.chess.com"]

[Event "Titled Tuesday Blitz April 19 Early 2022"]
[White "Murthy, Pappu"]
[Black "parintele_chess"]
[WhiteFideId "2013401"]
[WhiteElo "1920"]
[BlackElo "2243"]
[Result "1-0"]
[Round "05"]
[TimeControl "180+1"]
[Date "2022.04.19"]
[WhiteClock "0:00:03"]
[BlackClock "0:00:02"]

1. c4 {[%clk 0:02:53]}  c5 {[%clk 0:02:59]} 2. Nc3 {[%clk 0:02:51]}  Nc6 {[%clk 0:02:59]} 3. g3 {[%clk 0:02:51]}  g6 {[%clk 0:02:59]} 4. Bg2 {[%clk 0:02:51]}  Bg7 {[%clk 0:03:00]} 5. e4 {[%clk 0:02:51]}  e6 {[%clk 0:02:59]} 6. Nge2 {[%clk 0:02:51]}  Nge7 {[%clk 0:02:59]} 7. O-O {[%clk 0:02:51]}  d6 {[%clk 0:03:00]} 8. d3 {[%clk 0:02:51]}  h6 {[%clk 0:02:59]} 9. Be3 {[%clk 0:02:44]}  O-O {[%clk 0:02:59]} 10. Qd2 {[%clk 0:02:43]}  Kh7 {[%clk 0:02:59]} 11. Rab1 {[%clk 0:02:42]}  f5 {[%clk 0:02:57]} 12. b3 {[%clk 0:02:22]}  Nd4 {[%clk 0:02:48]} 13. a3 {[%clk 0:02:15]}  a5 {[%clk 0:02:45]} 14. b4 {[%clk 0:02:15]}  axb4 {[%clk 0:02:45]} 15. axb4 {[%clk 0:02:16]}  Nxe2+ {[%clk 0:02:43]} 16. Nxe2 {[%clk 0:02:13]}  cxb4 {[%clk 0:02:27]} 17. Rxb4 {[%clk 0:02:09]}  Nc6 {[%clk 0:02:27]} 18. Rb5 {[%clk 0:02:07]}  fxe4 {[%clk 0:02:19]} 19. Bxe4 {[%clk 0:01:58]}  d5 {[%clk 0:02:17]} 20. cxd5 {[%clk 0:01:57]}  exd5 {[%clk 0:02:18]} 21. Rxd5 {[%clk 0:01:55]}  Qf6 {[%clk 0:02:12]} 22. Rh5 {[%clk 0:01:37]}  Bg4 {[%clk 0:01:22]} 23. Rh4 {[%clk 0:01:28]}  Bxe2 {[%clk 0:01:02]} 24. Bxh6 {[%clk 0:01:06]}  Qxh4 {[%clk 0:00:53]} 25. gxh4 {[%clk 0:01:03]}  Bxf1 {[%clk 0:00:52]} 26. Bxg7 {[%clk 0:00:41]}  Kxg7 {[%clk 0:00:49]} 27. Qc3+ {[%clk 0:00:37]}  Rf6 {[%clk 0:00:42]} 28. Kxf1 {[%clk 0:00:30]}  Rf8 {[%clk 0:00:42]} 29. f3 {[%clk 0:00:30]}  Kh6 {[%clk 0:00:36]} 30. Qb2 {[%clk 0:00:27]}  R8f7 {[%clk 0:00:25]} 31. Bd5 {[%clk 0:00:24]}  Rf8 {[%clk 0:00:12]} 32. Be4 {[%clk 0:00:20]}  R6f7 {[%clk 0:00:05]} 33. Qb5 {[%clk 0:00:14]}  Nd4 {[%clk 0:00:03]} 34. Qg5+ {[%clk 0:00:13]}  Kh7 {[%clk 0:00:03]} 35. Qxg6+ {[%clk 0:00:13]}  Kh8 {[%clk 0:00:03]} 36. Qh6+ {[%clk 0:00:09]}  Kg8 {[%clk 0:00:04]} 37. Qg5+ {[%clk 0:00:08]}  Rg7 {[%clk 0:00:04]} 38. Qd5+ {[%clk 0:00:08]}  Kh8 {[%clk 0:00:04]} 39. Qxd4 {[%clk 0:00:08]}  Rg8 {[%clk 0:00:02]} 40. h5 {[%clk 0:00:07]}  Rf8 {[%clk 0:00:01]} 41. Kf2 {[%clk 0:00:05]}  b5 {[%clk 0:00:02]} 42. Bg6 {[%clk 0:00:04]}  b4 {[%clk 0:00:02]} 43. h6 {[%clk 0:00:03]}  Rxf3+ {[%clk 0:00:01]} 44. Kxf3 {[%clk 0:00:03]}  b3 {[%clk 0:00:02]} 45. Qxg7# {[%clk 0:00:03]} 1-0


[Site "https://www.chess.com"]

[Event "Titled Tuesday Blitz April 19 Early 2022"]
[White "Niyazgulova, Marina"]
[Black "Cagara, Paulina"]
[WhiteFideId "24142573"]
[BlackFideId "1124870"]
[WhiteElo "2046"]
[BlackElo "1780"]
[Result "1-0"]
[Round "05"]
[TimeControl "180+1"]
[Date "2022.04.19"]
[WhiteClock "0:00:16"]
[BlackClock "0:00:28"]

1. d4 {[%clk 0:03:00]}  f5 {[%clk 0:02:59]} 2. c4 {[%clk 0:02:58]}  Nf6 {[%clk 0:02:59]} 3. Nc3 {[%clk 0:02:58]}  g6 {[%clk 0:02:59]} 4. g3 {[%clk 0:02:58]}  Bg7 {[%clk 0:02:59]} 5. Bg2 {[%clk 0:02:49]}  O-O {[%clk 0:02:58]} 6. Nf3 {[%clk 0:02:49]}  d6 {[%clk 0:02:58]} 7. O-O {[%clk 0:02:48]}  Qe8 {[%clk 0:02:57]} 8. d5 {[%clk 0:02:42]}  a5 {[%clk 0:02:57]} 9. Bf4 {[%clk 0:02:32]}  Nh5 {[%clk 0:02:55]} 10. Qd2 {[%clk 0:02:29]}  Nxf4 {[%clk 0:02:54]} 11. gxf4 {[%clk 0:02:28]}  Na6 {[%clk 0:02:52]} 12. Nd4 {[%clk 0:02:21]}  Nc5 {[%clk 0:02:52]} 13. Rae1 {[%clk 0:02:17]}  e5 {[%clk 0:02:49]} 14. dxe6 {[%clk 0:02:11]}  Nxe6 {[%clk 0:02:47]} 15. Nxe6 {[%clk 0:02:11]}  Bxe6 {[%clk 0:02:45]} 16. Bxb7 {[%clk 0:02:10]}  Bxc4 {[%clk 0:02:41]} 17. Bxa8 {[%clk 0:02:00]}  Qxa8 {[%clk 0:02:40]} 18. b3 {[%clk 0:01:57]}  Bf7 {[%clk 0:02:40]} 19. Rd1 {[%clk 0:01:54]}  Re8 {[%clk 0:02:23]} 20. e3 {[%clk 0:01:52]}  Bf6 {[%clk 0:02:17]} 21. Nd5 {[%clk 0:01:50]}  Bd8 {[%clk 0:02:14]} 22. Qd4 {[%clk 0:01:50]}  Re6 {[%clk 0:01:56]} 23. Rd2 {[%clk 0:01:20]}  g5 {[%clk 0:01:53]} 24. fxg5 {[%clk 0:01:15]}  Re4 {[%clk 0:01:49]} 25. Qd3 {[%clk 0:01:04]}  Rg4+ {[%clk 0:01:47]} 26. Kh1 {[%clk 0:01:04]}  Bxg5 {[%clk 0:01:36]} 27. Qxf5 {[%clk 0:00:52]}  h5 {[%clk 0:01:29]} 28. f3 {[%clk 0:00:50]}  Bxe3 {[%clk 0:00:55]} 29. Nxe3 {[%clk 0:00:45]}  Bg6 {[%clk 0:00:43]} 30. Qd5+ {[%clk 0:00:38]}  Qxd5 {[%clk 0:00:42]} 31. Rxd5 {[%clk 0:00:36]}  Rf4 {[%clk 0:00:39]} 32. Rxa5 {[%clk 0:00:33]}  c5 {[%clk 0:00:38]} 33. Nd5 {[%clk 0:00:29]}  Rf7 {[%clk 0:00:36]} 34. Rg1 {[%clk 0:00:27]}  Kh7 {[%clk 0:00:35]} 35. Rf1 {[%clk 0:00:17]}  Be4 {[%clk 0:00:34]} 36. Ne3 {[%clk 0:00:17]}  Bxf3+ {[%clk 0:00:33]} 37. Kg1 {[%clk 0:00:17]}  Rg7+ {[%clk 0:00:32]} 38. Kf2 {[%clk 0:00:17]}  Be4 {[%clk 0:00:29]} 39. Rg1 {[%clk 0:00:17]}  Rf7+ {[%clk 0:00:28]} 40. Ke1 {[%clk 0:00:17]}  d5 {[%clk 0:00:28]} 41. Rxc5 {[%clk 0:00:17]}  d4 {[%clk 0:00:28]} 42. Rxh5# {[%clk 0:00:16]} 1-0


[Site "https://www.chess.com"]

[Event "Titled Tuesday Blitz April 19 Early 2022"]
[White "Oganian, Miran"]
[Black "Weetik, Vjacheslav"]
[WhiteFideId "4122488"]
[BlackFideId "4153472"]
[WhiteElo "2357"]
[BlackElo "2469"]
[Result "1-0"]
[Round "05"]
[TimeControl "180+1"]
[Date "2022.04.19"]
[WhiteClock "0:01:31"]
[BlackClock "0:00:01"]

1. d4 {[%clk 0:02:59]}  Nf6 {[%clk 0:02:57]} 2. Nc3 {[%clk 0:02:59]}  d5 {[%clk 0:02:57]} 3. Bf4 {[%clk 0:03:00]}  c5 {[%clk 0:02:57]} 4. e3 {[%clk 0:02:59]}  cxd4 {[%clk 0:02:57]} 5. exd4 {[%clk 0:03:00]}  a6 {[%clk 0:02:57]} 6. Bd3 {[%clk 0:03:00]}  Nc6 {[%clk 0:02:57]} 7. Nge2 {[%clk 0:03:00]}  Bg4 {[%clk 0:02:56]} 8. Qd2 {[%clk 0:03:01]}  e6 {[%clk 0:02:51]} 9. Ng3 {[%clk 0:03:01]}  Nh5 {[%clk 0:02:10]} 10. f3 {[%clk 0:02:52]}  Nxg3 {[%clk 0:01:08]} 11. hxg3 {[%clk 0:02:51]}  Bf5 {[%clk 0:01:08]} 12. Bxf5 {[%clk 0:02:51]}  exf5 {[%clk 0:01:09]} 13. O-O-O {[%clk 0:02:30]}  Be7 {[%clk 0:01:01]} 14. Rde1 {[%clk 0:02:25]}  O-O {[%clk 0:00:48]} 15. g4 {[%clk 0:02:25]}  fxg4 {[%clk 0:00:43]} 16. fxg4 {[%clk 0:02:24]}  h6 {[%clk 0:00:40]} 17. Rh5 {[%clk 0:02:22]}  Re8 {[%clk 0:00:19]} 18. Nxd5 {[%clk 0:02:07]}  Bf8 {[%clk 0:00:18]} 19. Rxe8 {[%clk 0:02:03]}  Qxe8 {[%clk 0:00:18]} 20. Nc7 {[%clk 0:02:03]}  Qc8 {[%clk 0:00:09]} 21. Nxa8 {[%clk 0:02:03]}  Qxa8 {[%clk 0:00:09]} 22. g5 {[%clk 0:02:03]}  hxg5 {[%clk 0:00:06]} 23. Bxg5 {[%clk 0:01:57]}  Qe8 {[%clk 0:00:04]} 24. Rh1 {[%clk 0:01:56]}  Qe4 {[%clk 0:00:03]} 25. c3 {[%clk 0:01:50]}  Qg4 {[%clk 0:00:01]} 26. Qf4 {[%clk 0:01:47]}  Qxg2 {[%clk 0:00:01]} 27. Qh4 {[%clk 0:01:30]}  f6 {[%clk 0:00:01]} 28. Bxf6 {[%clk 0:01:31]} 1-0


[Site "https://www.chess.com"]

[Event "Titled Tuesday Blitz April 19 Early 2022"]
[White "Okike, David"]
[Black "Ljukin, Sergei"]
[WhiteFideId "8500134"]
[BlackFideId "14102200"]
[WhiteElo "2232"]
[BlackElo "2312"]
[Result "0-1"]
[Round "05"]
[TimeControl "180+1"]
[Date "2022.04.19"]
[WhiteClock "0:01:37"]
[BlackClock "0:00:19"]

1. e4 {[%clk 0:03:00]}  e6 {[%clk 0:02:59]} 2. d4 {[%clk 0:02:59]}  d5 {[%clk 0:03:00]} 3. Nc3 {[%clk 0:02:58]}  Bb4 {[%clk 0:02:59]} 4. e5 {[%clk 0:02:58]}  Ne7 {[%clk 0:02:59]} 5. a3 {[%clk 0:02:58]}  Bxc3+ {[%clk 0:02:59]} 6. bxc3 {[%clk 0:02:59]}  c5 {[%clk 0:02:57]} 7. Qg4 {[%clk 0:02:59]}  Qc7 {[%clk 0:02:57]} 8. Qxg7 {[%clk 0:02:58]}  Rg8 {[%clk 0:02:57]} 9. Qxh7 {[%clk 0:02:59]}  cxd4 {[%clk 0:02:57]} 10. Ne2 {[%clk 0:03:00]}  Nbc6 {[%clk 0:02:57]} 11. f4 {[%clk 0:03:00]}  Bd7 {[%clk 0:02:57]} 12. Rb1 {[%clk 0:03:01]}  dxc3 {[%clk 0:02:55]} 13. Qd3 {[%clk 0:03:01]}  d4 {[%clk 0:02:50]} 14. h3 {[%clk 0:03:00]}  Nf5 {[%clk 0:02:35]} 15. g4 {[%clk 0:02:55]}  Nh4 {[%clk 0:02:35]} 16. Ng3 {[%clk 0:02:52]}  O-O-O {[%clk 0:02:30]} 17. Kf2 {[%clk 0:02:50]}  Na5 {[%clk 0:02:20]} 18. Ne4 {[%clk 0:02:48]}  Bc6 {[%clk 0:02:20]} 19. Rg1 {[%clk 0:02:46]}  Kb8 {[%clk 0:02:09]} 20. Rg3 {[%clk 0:02:45]}  Bd5 {[%clk 0:02:03]} 21. Rb4 {[%clk 0:02:35]}  Nc6 {[%clk 0:02:00]} 22. Rb1 {[%clk 0:02:34]}  b6 {[%clk 0:01:38]} 23. Nf6 {[%clk 0:02:23]}  Rh8 {[%clk 0:01:35]} 24. Nxd5 {[%clk 0:02:22]}  Rxd5 {[%clk 0:01:35]} 25. Rb5 {[%clk 0:02:11]}  Qd7 {[%clk 0:01:30]} 26. Rxd5 {[%clk 0:02:06]}  Qxd5 {[%clk 0:01:30]} 27. Bg2 {[%clk 0:02:06]}  Nxg2 {[%clk 0:01:29]} 28. Rxg2 {[%clk 0:02:06]}  Na5 {[%clk 0:01:19]} 29. Kg3 {[%clk 0:02:04]}  Nb7 {[%clk 0:01:19]} 30. Rh2 {[%clk 0:01:59]}  Nc5 {[%clk 0:01:18]} 31. Qf3 {[%clk 0:01:59]}  Qc4 {[%clk 0:00:40]} 32. h4 {[%clk 0:01:55]}  d3 {[%clk 0:00:39]} 33. cxd3 {[%clk 0:01:54]}  Nxd3 {[%clk 0:00:40]} 34. Be3 {[%clk 0:01:54]}  c2 {[%clk 0:00:38]} 35. h5 {[%clk 0:01:46]}  c1=Q {[%clk 0:00:37]} 36. Bxc1 {[%clk 0:01:46]}  Nxc1 {[%clk 0:00:37]} 37. g5 {[%clk 0:01:44]}  Nb3 {[%clk 0:00:23]} 38. h6 {[%clk 0:01:42]}  Nd4 {[%clk 0:00:23]} 39. Qe4 {[%clk 0:01:40]}  Nf5+ {[%clk 0:00:19]} 40. Kg4 {[%clk 0:01:37]}  Qxe4 {[%clk 0:00:19]} 0-1


[Site "https://www.chess.com"]

[Event "Titled Tuesday Blitz April 19 Early 2022"]
[White "Omariev, Maksim"]
[Black "Molina, Roberto Junio Brito"]
[WhiteFideId "4193423"]
[BlackFideId "2109450"]
[WhiteElo "2501"]
[BlackElo "2432"]
[Result "0-1"]
[Round "05"]
[TimeControl "180+1"]
[Date "2022.04.19"]
[WhiteClock "0:00:05"]
[BlackClock "0:00:47"]

1. e4 {[%clk 0:03:00]}  c6 {[%clk 0:02:59]} 2. d4 {[%clk 0:02:56]}  d5 {[%clk 0:03:00]} 3. exd5 {[%clk 0:02:56]}  cxd5 {[%clk 0:02:59]} 4. Bd3 {[%clk 0:02:56]}  Nc6 {[%clk 0:02:59]} 5. c3 {[%clk 0:02:55]}  g6 {[%clk 0:03:00]} 6. Nf3 {[%clk 0:02:53]}  Bf5 {[%clk 0:03:00]} 7. Bxf5 {[%clk 0:02:50]}  gxf5 {[%clk 0:03:01]} 8. O-O {[%clk 0:02:48]}  e6 {[%clk 0:03:00]} 9. Bf4 {[%clk 0:02:46]}  Bd6 {[%clk 0:03:00]} 10. Qd2 {[%clk 0:02:43]}  Nge7 {[%clk 0:03:00]} 11. Re1 {[%clk 0:02:39]}  Ng6 {[%clk 0:02:58]} 12. Bg5 {[%clk 0:02:27]}  Qc7 {[%clk 0:02:58]} 13. Na3 {[%clk 0:02:13]}  a6 {[%clk 0:02:53]} 14. Nc2 {[%clk 0:02:10]}  Bf4 {[%clk 0:02:49]} 15. Qd3 {[%clk 0:02:00]}  O-O {[%clk 0:02:45]} 16. Bf6 {[%clk 0:01:38]}  Bh6 {[%clk 0:02:24]} 17. g3 {[%clk 0:01:31]}  Rfe8 {[%clk 0:02:18]} 18. Ne3 {[%clk 0:01:28]}  Bg7 {[%clk 0:02:17]} 19. Bxg7 {[%clk 0:01:22]}  Kxg7 {[%clk 0:02:18]} 20. Ng2 {[%clk 0:01:21]}  Rad8 {[%clk 0:02:12]} 21. Re2 {[%clk 0:01:21]}  b5 {[%clk 0:02:10]} 22. a3 {[%clk 0:01:20]}  Na5 {[%clk 0:02:10]} 23. Rae1 {[%clk 0:01:20]}  Nc4 {[%clk 0:02:10]} 24. h4 {[%clk 0:01:17]}  h6 {[%clk 0:02:08]} 25. h5 {[%clk 0:01:15]}  Nf8 {[%clk 0:02:07]} 26. Nfh4 {[%clk 0:01:06]}  Nd6 {[%clk 0:01:57]} 27. f3 {[%clk 0:00:31]}  Nh7 {[%clk 0:01:55]} 28. Qe3 {[%clk 0:00:21]}  Qe7 {[%clk 0:01:47]} 29. Qe5+ {[%clk 0:00:19]}  Qf6 {[%clk 0:01:46]} 30. Nf4 {[%clk 0:00:16]}  Qxe5 {[%clk 0:01:42]} 31. Rxe5 {[%clk 0:00:17]}  Nf6 {[%clk 0:01:30]} 32. R5e2 {[%clk 0:00:18]}  a5 {[%clk 0:01:27]} 33. Kf2 {[%clk 0:00:17]}  Rb8 {[%clk 0:01:26]} 34. Nhg2 {[%clk 0:00:15]}  b4 {[%clk 0:01:24]} 35. axb4 {[%clk 0:00:16]}  axb4 {[%clk 0:01:25]} 36. Ne3 {[%clk 0:00:15]}  bxc3 {[%clk 0:01:24]} 37. bxc3 {[%clk 0:00:16]}  Rec8 {[%clk 0:01:25]} 38. Nd1 {[%clk 0:00:15]}  Rb1 {[%clk 0:01:21]} 39. Kg2 {[%clk 0:00:12]}  Ra8 {[%clk 0:01:18]} 40. Kf2 {[%clk 0:00:12]}  Raa1 {[%clk 0:01:18]} 41. Ne3 {[%clk 0:00:12]}  Rxe1 {[%clk 0:01:15]} 42. Rxe1 {[%clk 0:00:13]}  Ra3 {[%clk 0:01:15]} 43. Rc1 {[%clk 0:00:12]}  Ra2+ {[%clk 0:01:13]} 44. Rc2 {[%clk 0:00:12]}  Ra4 {[%clk 0:01:14]} 45. g4 {[%clk 0:00:11]}  fxg4 {[%clk 0:01:13]} 46. fxg4 {[%clk 0:00:12]}  Nfe4+ {[%clk 0:01:11]} 47. Ke2 {[%clk 0:00:10]}  Ra3 {[%clk 0:01:12]} 48. Kd3 {[%clk 0:00:08]}  Ra1 {[%clk 0:00:57]} 49. Rb2 {[%clk 0:00:07]}  Re1 {[%clk 0:00:51]} 50. Ne2 {[%clk 0:00:05]}  Rh1 {[%clk 0:00:48]} 51. Rb6 {[%clk 0:00:04]}  Rh3 {[%clk 0:00:47]} 52. Nf4 {[%clk 0:00:03]}  Rxe3+ {[%clk 0:00:46]} 53. Kxe3 {[%clk 0:00:02]}  Nc4+ {[%clk 0:00:47]} 54. Kf3 {[%clk 0:00:02]}  Nxb6 {[%clk 0:00:47]} 55. Nd3 {[%clk 0:00:03]}  Nc4 {[%clk 0:00:47]} 56. Nc5 {[%clk 0:00:03]}  Nxc5 {[%clk 0:00:47]} 57. dxc5 {[%clk 0:00:03]}  Ne5+ {[%clk 0:00:47]} 58. Kf4 {[%clk 0:00:03]}  Nc6 {[%clk 0:00:47]} 59. g5 {[%clk 0:00:03]}  hxg5+ {[%clk 0:00:46]} 60. Kxg5 {[%clk 0:00:04]}  f6+ {[%clk 0:00:47]} 61. Kg4 {[%clk 0:00:04]}  Kh6 {[%clk 0:00:47]} 62. Kh4 {[%clk 0:00:05]}  f5 {[%clk 0:00:47]} 0-1


[Site "https://www.chess.com"]

[Event "Titled Tuesday Blitz April 19 Early 2022"]
[White "Oparin, Grigoriy"]
[Black "Wagner, Dennis"]
[WhiteFideId "24125890"]
[BlackFideId "24650684"]
[WhiteElo "2665"]
[BlackElo "2355"]
[Result "1-0"]
[Round "05"]
[TimeControl "180+1"]
[Date "2022.04.19"]
[WhiteClock "0:00:37"]
[BlackClock "0:00:08"]

1. g3 {[%clk 0:03:00]}  d5 {[%clk 0:02:59]} 2. Nf3 {[%clk 0:03:00]}  Nf6 {[%clk 0:02:56]} 3. Bg2 {[%clk 0:03:01]}  c5 {[%clk 0:02:55]} 4. c4 {[%clk 0:03:00]}  e6 {[%clk 0:02:39]} 5. cxd5 {[%clk 0:02:58]}  exd5 {[%clk 0:02:39]} 6. d4 {[%clk 0:02:58]}  Nc6 {[%clk 0:02:39]} 7. Nc3 {[%clk 0:02:56]}  cxd4 {[%clk 0:02:35]} 8. Nxd4 {[%clk 0:02:57]}  Bc5 {[%clk 0:02:35]} 9. Be3 {[%clk 0:02:55]}  Qb6 {[%clk 0:02:26]} 10. Na4 {[%clk 0:02:55]}  Qb4+ {[%clk 0:01:52]} 11. Bd2 {[%clk 0:02:55]}  Qxd4 {[%clk 0:01:52]} 12. e3 {[%clk 0:02:56]}  Qe5 {[%clk 0:01:47]} 13. Nxc5 {[%clk 0:02:56]}  Qxb2 {[%clk 0:01:45]} 14. O-O {[%clk 0:02:56]}  O-O {[%clk 0:01:44]} 15. Nd3 {[%clk 0:02:55]}  Qa3 {[%clk 0:01:37]} 16. Bc1 {[%clk 0:02:55]}  Qa5 {[%clk 0:01:27]} 17. Bb2 {[%clk 0:02:52]}  d4 {[%clk 0:01:23]} 18. exd4 {[%clk 0:02:47]}  Rd8 {[%clk 0:01:14]} 19. Nf4 {[%clk 0:02:19]}  Bg4 {[%clk 0:01:12]} 20. Qd3 {[%clk 0:02:08]}  Qb6 {[%clk 0:01:03]} 21. Rab1 {[%clk 0:01:52]}  Nxd4 {[%clk 0:01:03]} 22. Bxd4 {[%clk 0:01:44]}  Qxd4 {[%clk 0:01:04]} 23. Qxd4 {[%clk 0:01:45]}  Rxd4 {[%clk 0:01:05]} 24. Rxb7 {[%clk 0:01:45]}  Ra4 {[%clk 0:00:49]} 25. h3 {[%clk 0:01:36]}  Bf5 {[%clk 0:00:46]} 26. Rc1 {[%clk 0:01:29]}  Rxa2 {[%clk 0:00:38]} 27. g4 {[%clk 0:01:04]}  Be4 {[%clk 0:00:37]} 28. Bxe4 {[%clk 0:00:52]}  Nxe4 {[%clk 0:00:38]} 29. Rcc7 {[%clk 0:00:52]}  Nd6 {[%clk 0:00:31]} 30. Rb4 {[%clk 0:00:52]}  h6 {[%clk 0:00:27]} 31. Rd7 {[%clk 0:00:49]}  a5 {[%clk 0:00:26]} 32. Rd4 {[%clk 0:00:43]}  Nb5 {[%clk 0:00:26]} 33. Re4 {[%clk 0:00:38]}  a4 {[%clk 0:00:23]} 34. Ree7 {[%clk 0:00:38]}  Rf8 {[%clk 0:00:08]} 35. Ne6 {[%clk 0:00:37]} 1-0


[Site "https://www.chess.com"]